[Event "Early-Titled-Tuesday-Blitz-June-18-2024"]
[Site "Chess.com"]
[Date "2024.06.18"]
[Round "1"]
[White "VirtualCoach"]
[Black "LeRoidesChampions"]
[Result "0-1"]
[WhiteElo "2342"]
[BlackElo "2657"]
[TimeControl "180+1"]
[EndTime "8:05:21 PDT"]
[Termination "LeRoidesChampions won by resignation"]

1. e4 {[%clk 0:03:00.9]} 1... Nf6 {[%clk 0:02:55.9]} 2. e5 {[%clk 0:03:00.6]}
2... Nd5 {[%clk 0:02:56.2]} 3. c4 {[%clk 0:03:01.1]} 3... Nb6 {[%clk 0:02:54.5]}
4. d4 {[%clk 0:03:00.9]} 4... d6 {[%clk 0:02:54.5]} 5. f4 {[%clk 0:03:01.3]}
5... dxe5 {[%clk 0:02:52.4]} 6. fxe5 {[%clk 0:03:01.9]} 6... Bf5 {[%clk
0:02:52.7]} 7. Nf3 {[%clk 0:03:01.4]} 7... e6 {[%clk 0:02:52.6]} 8. Be2 {[%clk
0:03:01.2]} 8... Nc6 {[%clk 0:02:50.8]} 9. Be3 {[%clk 0:03:00.9]} 9... Bb4+
{[%clk 0:02:49.6]} 10. Nc3 {[%clk 0:02:59]} 10... Na5 {[%clk 0:02:49.8]} 11. O-O
{[%clk 0:02:39.8]} 11... Bxc3 {[%clk 0:02:44.8]} 12. bxc3 {[%clk 0:02:39.6]}
12... O-O {[%clk 0:02:42]} 13. c5 {[%clk 0:02:33.2]} 13... Nd5 {[%clk
0:02:24.5]} 14. Bd2 {[%clk 0:02:31.7]} 14... Nc6 {[%clk 0:02:19.2]} 15. c4
{[%clk 0:02:26.6]} 15... Ndb4 {[%clk 0:02:09.7]} 16. Bc3 {[%clk 0:02:13.7]}
16... Nc2 {[%clk 0:02:08.4]} 17. Qd2 {[%clk 0:02:00]} 17... Nxa1 {[%clk
0:02:04.7]} 18. Rxa1 {[%clk 0:02:00.9]} 18... Qe7 {[%clk 0:02:01.2]} 19. Qe3
{[%clk 0:01:56.3]} 19... Rad8 {[%clk 0:02:00.6]} 20. Rd1 {[%clk 0:01:56.3]}
20... Rd7 {[%clk 0:01:59.8]} 21. d5 {[%clk 0:01:56.4]} 21... Rfd8 {[%clk
0:01:51.7]} 22. d6 {[%clk 0:01:52.9]} 22... Qf8 {[%clk 0:01:48.6]} 23. Rd2
{[%clk 0:01:51.9]} 23... b6 {[%clk 0:01:42.1]} 24. Nh4 {[%clk 0:01:46.5]} 24...
bxc5 {[%clk 0:01:22.8]} 25. Nxf5 {[%clk 0:01:42]} 25... exf5 {[%clk 0:01:23.7]}
26. Qxc5 {[%clk 0:01:42.1]} 26... Nb8 {[%clk 0:01:22.4]} 27. dxc7 {[%clk
0:01:33.1]} 27... Qxc5+ {[%clk 0:01:21.4]} 28. Bd4 {[%clk 0:00:55.8]} 28... Rxd4
{[%clk 0:01:13.9]} 29. cxd8=Q+ {[%clk 0:00:53.5]} 29... Rxd8+ {[%clk 0:01:13]}
0-1

[Event "Early-Titled-Tuesday-Blitz-June-18-2024"]
[Site "Chess.com"]
[Date "2024.06.18"]
[Round "1"]
[White "WilliamAlfaroCaracas"]
[Black "kingnb"]
[Result "0-1"]
[WhiteElo "2371"]
[BlackElo "2685"]
[TimeControl "180+1"]
[EndTime "8:05:34 PDT"]
[Termination "kingnb won on time"]

1. d4 {[%clk 0:02:32.7]} 1... Nf6 {[%clk 0:02:57.4]} 2. Nf3 {[%clk 0:02:31.7]}
2... g6 {[%clk 0:02:57.1]} 3. c4 {[%clk 0:02:31.3]} 3... Bg7 {[%clk 0:02:57.6]}
4. Nc3 {[%clk 0:02:31.9]} 4... O-O {[%clk 0:02:57.5]} 5. g3 {[%clk 0:02:32.4]}
5... d6 {[%clk 0:02:58.4]} 6. Bg2 {[%clk 0:02:32.8]} 6... c6 {[%clk 0:02:59.3]}
7. O-O {[%clk 0:02:33.2]} 7... Qa5 {[%clk 0:02:59.9]} 8. h3 {[%clk 0:02:31.7]}
8... Be6 {[%clk 0:02:58.7]} 9. Qd3 {[%clk 0:02:19.1]} 9... Qa6 {[%clk
0:02:58.7]} 10. b3 {[%clk 0:02:17.6]} 10... d5 {[%clk 0:02:58.6]} 11. Ne5 {[%clk
0:01:28.2]} 11... Rd8 {[%clk 0:02:55.5]} 12. cxd5 {[%clk 0:01:08.1]} 12... Qxd3
{[%clk 0:02:55.7]} 13. Nxd3 {[%clk 0:01:06.8]} 13... Nxd5 {[%clk 0:02:55.4]} 14.
Nxd5 {[%clk 0:00:58.8]} 14... Bxd5 {[%clk 0:02:56.3]} 15. e3 {[%clk 0:00:57.4]}
15... Na6 {[%clk 0:02:49.8]} 16. Ba3 {[%clk 0:00:54.9]} 16... Bxg2 {[%clk
0:02:41.2]} 17. Kxg2 {[%clk 0:00:53.4]} 17... Kf8 {[%clk 0:02:35.6]} 18. Rac1
{[%clk 0:00:52.3]} 18... Ke8 {[%clk 0:02:35.9]} 19. Rfd1 {[%clk 0:00:50.8]}
19... Rd5 {[%clk 0:02:36.1]} 20. Nc5 {[%clk 0:00:49.6]} 20... Nxc5 {[%clk
0:02:36.2]} 21. Rxc5 {[%clk 0:00:48.6]} 21... Rad8 {[%clk 0:02:36.6]} 22. Rdc1
{[%clk 0:00:33.4]} 22... e5 {[%clk 0:02:04]} 23. dxe5 {[%clk 0:00:23.8]} 23...
Rxe5 {[%clk 0:01:58.3]} 24. Kf3 {[%clk 0:00:19.8]} 24... Rd2 {[%clk 0:01:51.8]}
25. Rxe5+ {[%clk 0:00:14.9]} 25... Bxe5 {[%clk 0:01:52.7]} 26. Bc5 {[%clk
0:00:05]} 26... Rxa2 {[%clk 0:01:50.4]} 27. Rd1 {[%clk 0:00:03.3]} 27... Bc7
{[%clk 0:01:45.7]} 0-1

[Event "Early-Titled-Tuesday-Blitz-June-18-2024"]
[Site "Chess.com"]
[Date "2024.06.18"]
[Round "1"]
[White "Sondremelaa"]
[Black "JiiHart"]
[Result "1-0"]
[WhiteElo "2590"]
[BlackElo "2206"]
[TimeControl "180+1"]
[EndTime "8:05:35 PDT"]
[Termination "Sondremelaa won by checkmate"]

1. e4 {[%clk 0:02:51.3]} 1... c5 {[%clk 0:02:59]} 2. Nf3 {[%clk 0:02:50.9]} 2...
Nc6 {[%clk 0:02:58.8]} 3. d4 {[%clk 0:02:50.3]} 3... cxd4 {[%clk 0:02:58.8]} 4.
Nxd4 {[%clk 0:02:51.2]} 4... Nf6 {[%clk 0:02:57.5]} 5. Nc3 {[%clk 0:02:50.8]}
5... d6 {[%clk 0:02:57.7]} 6. Bg5 {[%clk 0:02:49]} 6... Bd7 {[%clk 0:02:57.6]}
7. Qd2 {[%clk 0:02:45]} 7... a6 {[%clk 0:02:57.5]} 8. O-O-O {[%clk 0:02:43.1]}
8... e6 {[%clk 0:02:57.4]} 9. Kb1 {[%clk 0:02:38.8]} 9... b5 {[%clk 0:02:49]}
10. Nxc6 {[%clk 0:02:25.4]} 10... Bxc6 {[%clk 0:02:48.3]} 11. f3 {[%clk
0:02:25.8]} 11... Be7 {[%clk 0:02:46.7]} 12. h4 {[%clk 0:02:20.7]} 12... Qc7
{[%clk 0:02:31.6]} 13. Ne2 {[%clk 0:02:18.3]} 13... Rc8 {[%clk 0:02:28.8]} 14.
Nd4 {[%clk 0:02:12.3]} 14... Bd7 {[%clk 0:02:22.3]} 15. h5 {[%clk 0:02:08.3]}
15... h6 {[%clk 0:02:21.5]} 16. Be3 {[%clk 0:02:07.9]} 16... d5 {[%clk
0:01:47.4]} 17. e5 {[%clk 0:02:06.2]} 17... Nh7 {[%clk 0:01:39.6]} 18. f4 {[%clk
0:02:01.6]} 18... f6 {[%clk 0:01:24.3]} 19. f5 {[%clk 0:01:25.9]} 19... fxe5
{[%clk 0:01:19.3]} 20. fxe6 {[%clk 0:01:22.9]} 20... exd4 {[%clk 0:01:15]} 21.
exd7+ {[%clk 0:01:23.1]} 21... Qxd7 {[%clk 0:01:14.7]} 22. Bxd4 {[%clk
0:01:23.5]} 22... O-O {[%clk 0:01:10.8]} 23. Bd3 {[%clk 0:01:21.9]} 23... Nf6
{[%clk 0:01:02.5]} 24. g4 {[%clk 0:01:13.4]} 24... Ne4 {[%clk 0:01:00.6]} 25.
Qg2 {[%clk 0:01:03.3]} 25... Nc5 {[%clk 0:00:42.8]} 26. Bf5 {[%clk 0:01:00.4]}
26... Rxf5 {[%clk 0:00:37.8]} 27. gxf5 {[%clk 0:00:59.6]} 27... Qxf5 {[%clk
0:00:38.3]} 28. Qxg7# {[%clk 0:00:58.8]} 1-0

[Event "Early-Titled-Tuesday-Blitz-June-18-2024"]
[Site "Chess.com"]
[Date "2024.06.18"]
[Round "1"]
[White "KarlEmilElmer"]
[Black "Zavgorodniy_Sergiy"]
[Result "0-1"]
[WhiteElo "2183"]
[BlackElo "2587"]
[TimeControl "180+1"]
[EndTime "8:05:42 PDT"]
[Termination "Zavgorodniy_Sergiy won by checkmate"]

1. d4 {[%clk 0:03:00.5]} 1... Nf6 {[%clk 0:02:59.4]} 2. c4 {[%clk 0:03:00.6]}
2... e6 {[%clk 0:02:59]} 3. Nc3 {[%clk 0:03:01.2]} 3... Bb4 {[%clk 0:02:59]} 4.
Bg5 {[%clk 0:03:01.7]} 4... h6 {[%clk 0:02:57]} 5. Bh4 {[%clk 0:02:37.3]} 5...
g5 {[%clk 0:02:56.8]} 6. Bg3 {[%clk 0:02:37.4]} 6... Ne4 {[%clk 0:02:57.1]} 7.
Qc2 {[%clk 0:02:29.6]} 7... f5 {[%clk 0:02:45]} 8. Be5 {[%clk 0:02:21.8]} 8...
Rg8 {[%clk 0:02:44.2]} 9. f3 {[%clk 0:02:13.1]} 9... d6 {[%clk 0:02:35.2]} 10.
Bg3 {[%clk 0:01:54.7]} 10... Bxc3+ {[%clk 0:02:30.7]} 11. bxc3 {[%clk
0:01:54.8]} 11... Nxg3 {[%clk 0:02:31.3]} 12. hxg3 {[%clk 0:01:55.4]} 12... Qf6
{[%clk 0:02:28.6]} 13. e4 {[%clk 0:01:43.7]} 13... Nc6 {[%clk 0:02:27.9]} 14.
O-O-O {[%clk 0:01:32.8]} 14... Bd7 {[%clk 0:02:14.5]} 15. d5 {[%clk 0:00:33.9]}
15... Ne5 {[%clk 0:01:56.1]} 16. f4 {[%clk 0:00:21.7]} 16... Ng4 {[%clk
0:01:55.5]} 17. exf5 {[%clk 0:00:21.6]} 17... Ne3 {[%clk 0:01:50.7]} 18. Qe2
{[%clk 0:00:11.7]} 18... Qxc3+ {[%clk 0:01:47.5]} 19. Kb1 {[%clk 0:00:10.5]}
19... Nxd1 {[%clk 0:01:37]} 20. fxe6 {[%clk 0:00:10.2]} 20... Ba4 {[%clk
0:01:25.1]} 21. Rxh6 {[%clk 0:00:08.3]} 21... O-O-O {[%clk 0:01:23.3]} 22. Rh7
{[%clk 0:00:08.2]} 22... Ne3 {[%clk 0:01:17.5]} 23. Nf3 {[%clk 0:00:07.7]} 23...
Bc2+ {[%clk 0:01:16.6]} 24. Kc1 {[%clk 0:00:07.5]} 24... Bxh7+ {[%clk
0:01:16.1]} 25. Qc2 {[%clk 0:00:05.9]} 25... Qxc2# {[%clk 0:01:16.2]} 0-1

[Event "Early-Titled-Tuesday-Blitz-June-18-2024"]
[Site "Chess.com"]
[Date "2024.06.18"]
[Round "1"]
[White "AmbartsumianTyhran2012"]
[Black "GM_dmitrij"]
[Result "0-1"]
[WhiteElo "2536"]
[BlackElo "3036"]
[TimeControl "180+1"]
[EndTime "8:05:43 PDT"]
[Termination "GM_dmitrij won by checkmate"]

1. e4 {[%clk 0:03:00.9]} 1... c6 {[%clk 0:02:59.4]} 2. d4 {[%clk 0:02:57.4]}
2... d5 {[%clk 0:02:59.9]} 3. e5 {[%clk 0:02:47.4]} 3... c5 {[%clk 0:02:59.2]}
4. dxc5 {[%clk 0:02:46.8]} 4... e6 {[%clk 0:02:56.1]} 5. Nf3 {[%clk 0:02:47.1]}
5... Bxc5 {[%clk 0:02:55.5]} 6. a3 {[%clk 0:02:47.5]} 6... Nd7 {[%clk
0:02:51.2]} 7. Bd3 {[%clk 0:02:46.6]} 7... f6 {[%clk 0:02:48.6]} 8. exf6 {[%clk
0:02:40.6]} 8... Ngxf6 {[%clk 0:02:49.5]} 9. O-O {[%clk 0:02:39]} 9... O-O
{[%clk 0:02:49.5]} 10. c4 {[%clk 0:02:35.5]} 10... e5 {[%clk 0:02:29]} 11. b4
{[%clk 0:02:08.9]} 11... Bb6 {[%clk 0:02:28.8]} 12. Bf5 {[%clk 0:01:45.7]} 12...
e4 {[%clk 0:02:22.1]} 13. Nd4 {[%clk 0:01:44.5]} 13... Ne5 {[%clk 0:02:18.5]}
14. Ne6 {[%clk 0:01:33.5]} 14... Bxe6 {[%clk 0:01:51.2]} 15. Bxe6+ {[%clk
0:01:29.2]} 15... Kh8 {[%clk 0:01:51.7]} 16. cxd5 {[%clk 0:01:22.7]} 16... Nd3
{[%clk 0:01:52]} 17. Be3 {[%clk 0:01:00.5]} 17... Nxd5 {[%clk 0:01:43.3]} 18.
Bxb6 {[%clk 0:00:52.5]} 18... Qxb6 {[%clk 0:01:33.8]} 19. Bxd5 {[%clk
0:00:22.6]} 19... Rxf2 {[%clk 0:01:33.3]} 20. Rxf2 {[%clk 0:00:17.9]} 20...
Qxf2+ {[%clk 0:01:32.9]} 21. Kh1 {[%clk 0:00:17.4]} 21... Qd4 {[%clk 0:01:33.8]}
22. Qf1 {[%clk 0:00:02.8]} 22... Nf2+ {[%clk 0:01:25.1]} 23. Kg1 {[%clk
0:00:02]} 23... Rf8 {[%clk 0:01:25.7]} 24. Nc3 {[%clk 0:00:01.5]} 24... Nh3+
{[%clk 0:01:23.4]} 25. Kh1 {[%clk 0:00:01.9]} 25... Rxf1+ {[%clk 0:01:24]} 26.
Rxf1 {[%clk 0:00:02.3]} 26... Qg1+ {[%clk 0:01:24.7]} 27. Rxg1 {[%clk 0:00:01]}
27... Nf2# {[%clk 0:01:25.6]} 0-1

[Event "Early-Titled-Tuesday-Blitz-June-18-2024"]
[Site "Chess.com"]
[Date "2024.06.18"]
[Round "1"]
[White "JacksterThePro"]
[Black "Msb2"]
[Result "0-1"]
[WhiteElo "2537"]
[BlackElo "3050"]
[TimeControl "180+1"]
[EndTime "8:05:44 PDT"]
[Termination "Msb2 won by resignation"]

1. d4 {[%clk 0:03:00.9]} 1... d5 {[%clk 0:03:00.3]} 2. c4 {[%clk 0:02:59.5]}
2... e6 {[%clk 0:02:59.9]} 3. Nc3 {[%clk 0:02:58.3]} 3... Bb4 {[%clk 0:02:59.9]}
4. cxd5 {[%clk 0:02:57]} 4... exd5 {[%clk 0:03:00.8]} 5. Bf4 {[%clk 0:02:55.9]}
5... c5 {[%clk 0:03:00.7]} 6. e3 {[%clk 0:02:50.8]} 6... c4 {[%clk 0:03:01]} 7.
Nf3 {[%clk 0:02:44.3]} 7... Nc6 {[%clk 0:03:00.4]} 8. Ne5 {[%clk 0:02:18.9]}
8... Nf6 {[%clk 0:02:58.4]} 9. Be2 {[%clk 0:02:11.7]} 9... Ne4 {[%clk
0:02:50.6]} 10. Rc1 {[%clk 0:01:55]} 10... Qa5 {[%clk 0:02:48.4]} 11. Nxc6
{[%clk 0:01:48.9]} 11... bxc6 {[%clk 0:02:47.8]} 12. O-O {[%clk 0:01:21.5]}
12... Bxc3 {[%clk 0:02:46.2]} 13. bxc3 {[%clk 0:01:20]} 13... Nxc3 {[%clk
0:02:47.1]} 14. Qe1 {[%clk 0:01:19.4]} 14... Nxe2+ {[%clk 0:02:47.3]} 15. Qxe2
{[%clk 0:01:20.3]} 15... O-O {[%clk 0:02:47.6]} 16. e4 {[%clk 0:00:57]} 16...
Re8 {[%clk 0:02:44.8]} 17. e5 {[%clk 0:00:52.3]} 17... Bf5 {[%clk 0:02:43.9]}
18. Rfe1 {[%clk 0:00:51.1]} 18... Bd3 {[%clk 0:02:38.8]} 19. Qg4 {[%clk
0:00:48.6]} 19... Re6 {[%clk 0:02:38.3]} 20. h4 {[%clk 0:00:45.8]} 20... Qxa2
{[%clk 0:02:19.4]} 21. h5 {[%clk 0:00:43.5]} 21... Qb2 {[%clk 0:02:19.4]} 22.
Rcd1 {[%clk 0:00:25.8]} 22... Qxd4 {[%clk 0:02:16]} 23. Re3 {[%clk 0:00:20.1]}
23... Bf5 {[%clk 0:02:03.6]} 24. Qxf5 {[%clk 0:00:08.8]} 24... Qxd1+ {[%clk
0:02:03.4]} 25. Kh2 {[%clk 0:00:09.5]} 25... g6 {[%clk 0:01:57.9]} 26. hxg6
{[%clk 0:00:08.4]} 26... hxg6 {[%clk 0:01:58.8]} 27. Qg5 {[%clk 0:00:07.5]}
27... Qh5+ {[%clk 0:01:58.9]} 28. Qxh5 {[%clk 0:00:07.3]} 28... gxh5 {[%clk
0:01:59.8]} 29. Bg5 {[%clk 0:00:07.1]} 29... Rg6 {[%clk 0:01:59.4]} 30. Bf6
{[%clk 0:00:06.9]} 30... d4 {[%clk 0:01:59.6]} 31. Re4 {[%clk 0:00:06.8]} 31...
c5 {[%clk 0:02:00.3]} 32. f4 {[%clk 0:00:06.5]} 32... c3 {[%clk 0:02:00.4]} 33.
f5 {[%clk 0:00:06.8]} 33... Rg4 {[%clk 0:02:01.1]} 34. Re1 {[%clk 0:00:03]}
34... c2 {[%clk 0:02:01.4]} 35. e6 {[%clk 0:00:03.4]} 35... fxe6 {[%clk
0:02:01.7]} 36. fxe6 {[%clk 0:00:03.6]} 36... d3 {[%clk 0:02:01.7]} 37. Bc3
{[%clk 0:00:01.5]} 37... Rc4 {[%clk 0:02:00.6]} 38. Bd2 {[%clk 0:00:01.4]} 38...
Re8 {[%clk 0:02:00.9]} 39. e7 {[%clk 0:00:01.8]} 39... Rg4 {[%clk 0:01:57.1]}
40. g3 {[%clk 0:00:01.4]} 40... Kf7 {[%clk 0:01:57.6]} 41. Kg2 {[%clk
0:00:01.7]} 41... Rxe7 {[%clk 0:01:58.2]} 0-1

[Event "Early-Titled-Tuesday-Blitz-June-18-2024"]
[Site "Chess.com"]
[Date "2024.06.18"]
[Round "1"]
[White "yobdc"]
[Black "GOGIEFF"]
[Result "0-1"]
[WhiteElo "2536"]
[BlackElo "3015"]
[TimeControl "180+1"]
[EndTime "8:05:48 PDT"]
[Termination "GOGIEFF won by resignation"]

1. Nf3 {[%clk 0:02:59]} 1... d5 {[%clk 0:02:59.5]} 2. g3 {[%clk 0:02:58.7]} 2...
Bg4 {[%clk 0:02:59.3]} 3. Bg2 {[%clk 0:02:59.1]} 3... c6 {[%clk 0:02:59.7]} 4.
h3 {[%clk 0:02:59.5]} 4... Bh5 {[%clk 0:02:59.2]} 5. d3 {[%clk 0:02:59.4]} 5...
Nd7 {[%clk 0:02:58.8]} 6. Nbd2 {[%clk 0:03:00]} 6... e6 {[%clk 0:02:59.1]} 7.
O-O {[%clk 0:02:59.1]} 7... Bd6 {[%clk 0:02:58.9]} 8. e4 {[%clk 0:02:58.5]} 8...
Ne7 {[%clk 0:02:58.6]} 9. Qe1 {[%clk 0:02:52.3]} 9... O-O {[%clk 0:02:58.4]} 10.
g4 {[%clk 0:02:38.4]} 10... Bg6 {[%clk 0:02:57.7]} 11. Nh4 {[%clk 0:02:39]}
11... Bf4 {[%clk 0:02:55.2]} 12. Qe2 {[%clk 0:02:22]} 12... Qc7 {[%clk 0:02:46]}
13. Kh1 {[%clk 0:02:12.7]} 13... Rae8 {[%clk 0:02:38.8]} 14. Ndf3 {[%clk
0:01:57.6]} 14... dxe4 {[%clk 0:02:31.2]} 15. dxe4 {[%clk 0:01:57]} 15... Bxc1
{[%clk 0:02:29]} 16. Raxc1 {[%clk 0:01:57.9]} 16... Rd8 {[%clk 0:02:25.2]} 17.
Ne1 {[%clk 0:01:37.3]} 17... e5 {[%clk 0:02:20.6]} 18. Nd3 {[%clk 0:01:35]}
18... Rfe8 {[%clk 0:02:19.7]} 19. Nf5 {[%clk 0:01:34.5]} 19... Nf8 {[%clk
0:02:19.3]} 20. Qe3 {[%clk 0:00:54.4]} 20... Ne6 {[%clk 0:02:12.1]} 21. Qg3
{[%clk 0:00:46.9]} 21... f6 {[%clk 0:01:59.2]} 22. h4 {[%clk 0:00:46.7]} 22...
Bf7 {[%clk 0:01:55.9]} 23. g5 {[%clk 0:00:43.4]} 23... fxg5 {[%clk 0:01:45.6]}
24. hxg5 {[%clk 0:00:44.3]} 24... Ng6 {[%clk 0:01:45.2]} 25. Rfd1 {[%clk
0:00:12.2]} 25... c5 {[%clk 0:01:42.1]} 26. Bf1 {[%clk 0:00:11.2]} 26... a5
{[%clk 0:01:36.1]} 27. Ne1 {[%clk 0:00:08.1]} 27... Nef4 {[%clk 0:01:35.3]} 28.
Nf3 {[%clk 0:00:05]} 28... Qc6 {[%clk 0:01:26.9]} 29. b3 {[%clk 0:00:04.2]}
29... Qxe4 {[%clk 0:01:26.6]} 30. Bd3 {[%clk 0:00:04.1]} 30... Nxd3 {[%clk
0:01:26.2]} 31. cxd3 {[%clk 0:00:04.1]} 31... Qxf5 {[%clk 0:01:26.3]} 0-1

[Event "Early-Titled-Tuesday-Blitz-June-18-2024"]
[Site "Chess.com"]
[Date "2024.06.18"]
[Round "1"]
[White "SkinnyPuppy8"]
[Black "AmartuvshinGanzorig"]
[Result "1-0"]
[WhiteElo "2170"]
[BlackElo "2557"]
[TimeControl "180+1"]
[EndTime "8:05:50 PDT"]
[Termination "SkinnyPuppy8 won by checkmate"]

1. e4 {[%clk 0:02:59.7]} 1... e5 {[%clk 0:02:58.1]} 2. Nc3 {[%clk 0:02:59.7]}
2... Nf6 {[%clk 0:02:56.7]} 3. Bc4 {[%clk 0:03:00.1]} 3... Be7 {[%clk
0:02:55.8]} 4. d3 {[%clk 0:02:59.9]} 4... O-O {[%clk 0:02:56.4]} 5. f4 {[%clk
0:03:00.2]} 5... d6 {[%clk 0:02:57.1]} 6. f5 {[%clk 0:02:57.3]} 6... c6 {[%clk
0:02:54.1]} 7. g4 {[%clk 0:02:57.6]} 7... d5 {[%clk 0:02:54.3]} 8. Bb3 {[%clk
0:02:58.1]} 8... dxe4 {[%clk 0:02:52.9]} 9. Nxe4 {[%clk 0:02:56.5]} 9... Nxe4
{[%clk 0:02:52.6]} 10. dxe4 {[%clk 0:02:57.4]} 10... Bh4+ {[%clk 0:02:53]} 11.
Ke2 {[%clk 0:02:57.9]} 11... Qb6 {[%clk 0:02:52.1]} 12. Be3 {[%clk 0:02:55.5]}
12... Qb4 {[%clk 0:02:51.9]} 13. Qd3 {[%clk 0:02:49.3]} 13... b6 {[%clk
0:02:49.3]} 14. c3 {[%clk 0:02:42.1]} 14... Qe7 {[%clk 0:02:48.4]} 15. Nf3
{[%clk 0:02:39.7]} 15... Rd8 {[%clk 0:02:44.3]} 16. Qc2 {[%clk 0:02:39.9]} 16...
Ba6+ {[%clk 0:02:44.1]} 17. c4 {[%clk 0:02:39.8]} 17... b5 {[%clk 0:02:44.2]}
18. Rad1 {[%clk 0:02:37.7]} 18... Nd7 {[%clk 0:02:43.1]} 19. g5 {[%clk
0:02:14.3]} 19... Nb6 {[%clk 0:02:41.7]} 20. Nxh4 {[%clk 0:02:10.8]} 20... bxc4
{[%clk 0:02:38.6]} 21. Ba4 {[%clk 0:02:07.5]} 21... c3+ {[%clk 0:02:21.1]} 22.
Kf2 {[%clk 0:01:58.2]} 22... Nc4 {[%clk 0:02:20.8]} 23. Qxc3 {[%clk 0:01:49]}
23... Nxe3 {[%clk 0:02:14]} 24. Qxe3 {[%clk 0:01:49.3]} 24... Qb4 {[%clk
0:02:10.5]} 25. Bb3 {[%clk 0:01:44.8]} 25... Rd4 {[%clk 0:02:09.5]} 26. Rhe1
{[%clk 0:01:17.1]} 26... Rad8 {[%clk 0:02:06.5]} 27. Nf3 {[%clk 0:01:08.6]}
27... Rxd1 {[%clk 0:01:30.6]} 28. Rxd1 {[%clk 0:01:04.3]} 28... Rxd1 {[%clk
0:01:30]} 29. Bxd1 {[%clk 0:01:04]} 29... Qxb2+ {[%clk 0:01:30.9]} 30. Qd2
{[%clk 0:01:04.1]} 30... Qb6+ {[%clk 0:01:30.5]} 31. Kg3 {[%clk 0:00:57.6]}
31... h6 {[%clk 0:01:24.5]} 32. gxh6 {[%clk 0:00:56]} 32... f6 {[%clk 0:01:23]}
33. Bb3+ {[%clk 0:00:49.5]} 33... Kh7 {[%clk 0:01:20.9]} 34. Qd7 {[%clk
0:00:47.2]} 34... Kxh6 {[%clk 0:01:20.7]} 35. Qf7 {[%clk 0:00:41.1]} 35... Kh7
{[%clk 0:01:17.7]} 36. Qg8+ {[%clk 0:00:41.1]} 36... Kh6 {[%clk 0:01:16]} 37.
Qh8# {[%clk 0:00:41.3]} 1-0

[Event "Early-Titled-Tuesday-Blitz-June-18-2024"]
[Site "Chess.com"]
[Date "2024.06.18"]
[Round "1"]
[White "Korchmar_Vasiliy"]
[Black "yonaltimur"]
[Result "1-0"]
[WhiteElo "2656"]
[BlackElo "2340"]
[TimeControl "180+1"]
[EndTime "8:05:54 PDT"]
[Termination "Korchmar_Vasiliy won on time"]

1. e4 {[%clk 0:03:00.9]} 1... c5 {[%clk 0:02:59]} 2. d4 {[%clk 0:02:59.5]} 2...
cxd4 {[%clk 0:02:58.6]} 3. Qxd4 {[%clk 0:03:00.4]} 3... d6 {[%clk 0:02:51.5]} 4.
Nc3 {[%clk 0:02:59.6]} 4... Nc6 {[%clk 0:02:48.5]} 5. Qd3 {[%clk 0:02:59.5]}
5... Nf6 {[%clk 0:02:47.5]} 6. Nf3 {[%clk 0:02:59.5]} 6... g6 {[%clk 0:02:47.3]}
7. Be2 {[%clk 0:02:58.3]} 7... Bg7 {[%clk 0:02:47.6]} 8. O-O {[%clk 0:02:58.7]}
8... O-O {[%clk 0:02:47.9]} 9. Nd5 {[%clk 0:02:59.2]} 9... Nxd5 {[%clk
0:02:28.8]} 10. exd5 {[%clk 0:03:00.1]} 10... Bf5 {[%clk 0:02:28.5]} 11. Qd1
{[%clk 0:02:59.9]} 11... Ne5 {[%clk 0:02:28.3]} 12. Nxe5 {[%clk 0:02:56.2]}
12... Bxe5 {[%clk 0:02:25.1]} 13. c3 {[%clk 0:02:56.6]} 13... Qb6 {[%clk
0:02:15.3]} 14. a4 {[%clk 0:02:54.8]} 14... Rfe8 {[%clk 0:01:20.6]} 15. a5
{[%clk 0:02:52.7]} 15... Qc7 {[%clk 0:01:20.7]} 16. Be3 {[%clk 0:02:52.3]} 16...
Bg7 {[%clk 0:01:16.5]} 17. a6 {[%clk 0:02:52.6]} 17... b6 {[%clk 0:01:14.9]} 18.
h4 {[%clk 0:02:53.1]} 18... e5 {[%clk 0:01:10.8]} 19. h5 {[%clk 0:02:49.5]}
19... Bd7 {[%clk 0:01:08.9]} 20. h6 {[%clk 0:02:48.5]} 20... Bf8 {[%clk
0:01:08.2]} 21. Qd2 {[%clk 0:02:38.3]} 21... f5 {[%clk 0:01:07.9]} 22. Bg5
{[%clk 0:02:38.9]} 22... f4 {[%clk 0:00:54.4]} 23. g3 {[%clk 0:02:26]} 23... Bf5
{[%clk 0:00:25.3]} 24. Bb5 {[%clk 0:02:16]} 24... Bd7 {[%clk 0:00:18.2]} 25. Bd3
{[%clk 0:02:03.6]} 25... Bh3 {[%clk 0:00:17.6]} 26. Rfe1 {[%clk 0:02:03.3]}
26... Qd7 {[%clk 0:00:17.8]} 27. Qe2 {[%clk 0:01:44.2]} 27... Bg4 {[%clk
0:00:07.8]} 28. f3 {[%clk 0:01:42.5]} 28... Bf5 {[%clk 0:00:03.8]} 29. Bb5
{[%clk 0:01:42.4]} 29... Qf7 {[%clk 0:00:03]} 30. Bxe8 {[%clk 0:01:42.6]} 30...
Rxe8 {[%clk 0:00:03.8]} 31. g4 {[%clk 0:01:34.9]} 31... Bd7 {[%clk 0:00:02.4]}
32. Qe4 {[%clk 0:01:35.4]} 32... Rc8 {[%clk 0:00:01.8]} 33. c4 {[%clk
0:01:34.4]} 1-0

[Event "Early-Titled-Tuesday-Blitz-June-18-2024"]
[Site "Chess.com"]
[Date "2024.06.18"]
[Round "1"]
[White "pospisku"]
[Black "TigrVShlyape"]
[Result "0-1"]
[WhiteElo "2534"]
[BlackElo "2989"]
[TimeControl "180+1"]
[EndTime "8:05:58 PDT"]
[Termination "TigrVShlyape won by resignation"]

1. e4 {[%clk 0:02:56.6]} 1... c5 {[%clk 0:02:58.8]} 2. Nf3 {[%clk 0:02:55.5]}
2... e6 {[%clk 0:02:58]} 3. d4 {[%clk 0:02:54.6]} 3... cxd4 {[%clk 0:02:57.2]}
4. Nxd4 {[%clk 0:02:54.7]} 4... a6 {[%clk 0:02:57.6]} 5. Bd3 {[%clk 0:02:53]}
5... Bc5 {[%clk 0:02:53.5]} 6. Nb3 {[%clk 0:02:52.6]} 6... Ba7 {[%clk
0:02:53.3]} 7. Nc3 {[%clk 0:02:52.3]} 7... Ne7 {[%clk 0:02:52.4]} 8. Qe2 {[%clk
0:02:52.2]} 8... b5 {[%clk 0:02:49.1]} 9. Be3 {[%clk 0:02:50.5]} 9... d6 {[%clk
0:02:46.8]} 10. O-O-O {[%clk 0:02:35.5]} 10... b4 {[%clk 0:02:46]} 11. Bxa7
{[%clk 0:01:15.1]} 11... Rxa7 {[%clk 0:02:42.8]} 12. Qe3 {[%clk 0:01:15.4]}
12... Qc7 {[%clk 0:02:19.9]} 13. Na4 {[%clk 0:00:44.7]} 13... Rb7 {[%clk
0:02:17.3]} 14. e5 {[%clk 0:00:35]} 14... dxe5 {[%clk 0:02:10.3]} 15. Rhe1
{[%clk 0:00:31]} 15... Nd7 {[%clk 0:02:08.2]} 16. Nac5 {[%clk 0:00:27.8]} 16...
Nd5 {[%clk 0:02:03.9]} 17. Nxa6 {[%clk 0:00:18.4]} 17... Qd6 {[%clk 0:01:53.6]}
18. Qg3 {[%clk 0:00:18.5]} 18... O-O {[%clk 0:01:40.4]} 19. Re4 {[%clk
0:00:08.3]} 19... Rb6 {[%clk 0:01:38]} 20. Rh4 {[%clk 0:00:07.9]} 20... f5
{[%clk 0:01:34.9]} 21. Qh3 {[%clk 0:00:07.4]} 21... h6 {[%clk 0:01:27.6]} 22.
Bc4 {[%clk 0:00:07]} 22... Bxa6 {[%clk 0:01:25.7]} 23. Bxa6 {[%clk 0:00:07.9]}
23... Rxa6 {[%clk 0:01:25.8]} 24. Kb1 {[%clk 0:00:08.8]} 24... N7f6 {[%clk
0:01:23.5]} 25. Nd2 {[%clk 0:00:07.9]} 25... Nf4 {[%clk 0:01:16.9]} 26. Qg3
{[%clk 0:00:05.6]} 26... Rd8 {[%clk 0:01:16]} 27. Rxh6 {[%clk 0:00:05.6]} 27...
Ne4 {[%clk 0:01:15.2]} 0-1